{"text_format":"3","workbook":"xlsx","n_sheets":2,"sheets":["Dashboard","Requirements"],"not_rendered":{"charts":2,"images":2},"read":"whole","date_system":"1900"}

{"sheet":"Dashboard","index":0,"n_rows":40,"n_cols":4,"rows_kept":40}
[]
[]
[]
[]
[]
["Project name:",null,null,{"$f":"Requirements!D6","v":"<Project name>"}]
["Project code:",null,null,{"$f":"Requirements!D7","v":"<Project code>"}]
["Version of the document:",null,null,{"$f":"Requirements!D8","v":"1.0"}]
["Brief summary of the scope:",null,null,{"$f":"Requirements!D9","v":0}]
[]
["Signed by:",null,null,{"$f":"Requirements!D16","v":"<Signer>"}]
["Signed date:",null,null,{"$f":"Requirements!D17","v":"1-Jan-2012"}]
["Signature:"]
[]
["by OVERTI"]
[]
[]
["Number of requirements:",null,{"$f":"COUNTA(Tabla1[ID])","v":3}]
["Requirements by type:"]
[null,{"$f":"Requirements!Q2","v":"Functional"},{"$f":"COUNTIF(Requirements!$C$23:$C$54,Dashboard!B20)","v":1}]
[null,{"$f":"Requirements!Q3","v":"Performance"},{"$f":"COUNTIF(Requirements!$C$23:$C$54,Dashboard!B21)","v":0}]
[null,{"$f":"Requirements!Q4","v":"Usability"},{"$f":"COUNTIF(Requirements!$C$23:$C$54,Dashboard!B22)","v":1}]
[null,{"$f":"Requirements!Q5","v":"Interface"},{"$f":"COUNTIF(Requirements!$C$23:$C$54,Dashboard!B23)","v":0}]
[null,{"$f":"Requirements!Q6","v":"Operational"},{"$f":"COUNTIF(Requirements!$C$23:$C$54,Dashboard!B24)","v":0}]
[null,{"$f":"Requirements!Q7","v":"States and modes"},{"$f":"COUNTIF(Requirements!$C$23:$C$54,Dashboard!B25)","v":0}]
[null,{"$f":"Requirements!Q8","v":"Environmental"},{"$f":"COUNTIF(Requirements!$C$23:$C$54,Dashboard!B26)","v":0}]
[null,{"$f":"Requirements!Q9","v":"Adaptability"},{"$f":"COUNTIF(Requirements!$C$23:$C$54,Dashboard!B27)","v":0}]
[null,{"$f":"Requirements!Q10","v":"Constraint"},{"$f":"COUNTIF(Requirements!$C$23:$C$54,Dashboard!B28)","v":0}]
[null,{"$f":"Requirements!Q11","v":"Business"},{"$f":"COUNTIF(Requirements!$C$23:$C$54,Dashboard!B29)","v":1}]
[null,{"$f":"Requirements!Q12","v":"Stakeholder"},{"$f":"COUNTIF(Requirements!$C$23:$C$54,Dashboard!B30)","v":0}]
[null,{"$f":"Requirements!Q13","v":"Transition"},{"$f":"COUNTIF(Requirements!$C$23:$C$54,Dashboard!B31)","v":0}]
["Requirements by status:"]
[null,{"$f":"Requirements!P2","v":"New"},{"$f":"COUNTIF(Requirements!$J$23:$J$54,Dashboard!B33)","v":1}]
[null,{"$f":"Requirements!P3","v":"Verified"},{"$f":"COUNTIF(Requirements!$J$23:$J$54,Dashboard!B34)","v":1}]
[null,{"$f":"Requirements!P4","v":"Approved"},{"$f":"COUNTIF(Requirements!$J$23:$J$54,Dashboard!B35)","v":1}]
[null,{"$f":"Requirements!P5","v":"Rejected"},{"$f":"COUNTIF(Requirements!$J$23:$J$54,Dashboard!B36)","v":0}]
[null,{"$f":"Requirements!P6","v":"Deferred"},{"$f":"COUNTIF(Requirements!$J$23:$J$54,Dashboard!B37)","v":0}]
[null,{"$f":"Requirements!P7","v":"In development"},{"$f":"COUNTIF(Requirements!$J$23:$J$54,Dashboard!B38)","v":0}]
[null,{"$f":"Requirements!P8","v":"Completed"},{"$f":"COUNTIF(Requirements!$J$23:$J$54,Dashboard!B39)","v":0}]
[null,{"$f":"Requirements!P9","v":"Tested"},{"$f":"COUNTIF(Requirements!$J$23:$J$54,Dashboard!B40)","v":0}]

{"sheet":"Requirements","index":1,"n_rows":25,"n_cols":17,"rows_kept":25}
[{"$nulls":14},"Complexity","Status","Types"]
[{"$nulls":14},"Very high","New","Functional"]
[{"$nulls":14},"High","Verified","Performance"]
[{"$nulls":14},"Medium","Approved","Usability"]
[{"$nulls":14},"Low","Rejected","Interface"]
["Project name:",null,null,"<Project name>",{"$nulls":10},"Very low","Deferred","Operational"]
["Project code:",null,null,"<Project code>",{"$nulls":11},"In development","States and modes"]
["Version of the document:",null,null,"1.0",{"$nulls":11},"Completed","Environmental"]
["Brief summary of the scope:",{"$nulls":14},"Tested","Adaptability"]
["Constraints:",{"$nulls":15},"Constraint"]
["Assumptions and dependencies:",{"$nulls":15},"Business"]
["Environment:",null,null,"<What environment/s the system is intended to operate in>",{"$nulls":12},"Stakeholder"]
["Participants:",null,null,"<Name 1>",{"$nulls":12},"Transition"]
[{"$nulls":3},"<Name 2>"]
[{"$nulls":3},"<Name 3>"]
["Signed by:",null,null,"<Signer>"]
["Signed date:",null,null,"1-Jan-2012"]
["Signature:"]
[]
["by The REUSE Company"]
[]
["ID","Title","Type","Description","Rationale","Created by","Source","Allocation","Related requirements","Status","Completixy","Impact in the business"]
["UR-001","<Short name of the requirement>","Functional","<Requirement text>","<Reason why this requirement is needed>","<How created the requirement>","<How identified the need>","<Components where the requirement is allocated into>","<Ids of the related requirements>","Approved","Very high","<In case this requirement is not fulfilled, what is the impact to the business needs address by this project>"]
["UR-002",null,"Business",{"$nulls":6},"New","Medium"]
["UR-003",null,"Usability",{"$nulls":6},"Verified","Low"]